{"text_format":"3","workbook":"xlsx","n_sheets":2,"sheets":["PRICING SCHEDULE","Sheet1"],"not_rendered":{"images":3,"defined_names":3},"read":"whole","date_system":"1900"}

{"sheet":"PRICING SCHEDULE","index":0,"n_rows":38,"n_cols":20,"rows_kept":38,"merged":[[10,3,10,6],[10,7,10,9],[10,10,10,12],[10,13,10,14],[10,16,10,18],[19,1,19,18],[20,1,20,18],[21,1,21,18],[34,1,37,1],[34,2,34,4],[34,5,34,6],[35,3,35,4],[36,2,36,3],[36,5,36,6]]}
[null,"SUPPLY CHAIN MANAGEMENT"]
[null,"Pricing schedule"]
["RFB No","RFB 3210/2025/RFB 175012"]
["RFB Title","REQUEST FOR BID TO SOURCE ALTERNATIVE SUITABLE CORPORATE OFFICE ACCOMMODATION FOR SITA RUSTENBURG OFFICE FOR A PERIOD OF FIVE (5) YEARS"]
["Bidder Name "]
[]
["1. INSTRUCTION FOR COMPLETING THE PRICING SCHEDULE"]
["(a)  Bidder must complete/enter YELLOW cells only"]
["(b)  Unit and Line prices must be VAT EXCLUSIVE and in South African Rand (ZAR) currency."]
["(c) The price must include all cost to deliver the  service, including all applicable taxes. "]
[{"$nulls":3},"YEAR 1",{"$nulls":3},"YEAR 2",null,null,"YEAR 3",null,null,"YEAR 4",null,null,"YEAR 5",null,null,"TOTAL"]
["Item No","Goods/Service description","Unit of measure","Qty ","Monthly Line Price","Total Monthly Line Price (Excl VAT)","Annual Line Price Y1","Yearly Esc. Rate","Total Monthly Line Price (Excl VAT)","Annual Line Price Y2","Yearly Esc. Rate","Total Monthly Line Price (Excl VAT)","Annual Line Price Y3","Yearly Esc. Rate","Total Monthly Line Price (Excl VAT)","Annual Line Price Y4","Yearly Esc. Rate","Total Monthly Line Price (Excl VAT)","Annual Line Price Y5","Line Price Term \n(Excl VAT)"]
[1,{"$nulls":4},{"$f":"SUM(F14:F18)","v":0},{"$f":"SUM(G14:G15)","v":0},null,{"$f":"SUM(I14:I18)","v":0},{"$f":"SUM(J14:J16)","v":0},null,{"$f":"SUM(L14:L18)","v":0},{"$f":"SUM(M14:M16)","v":0},null,{"$f":"SUM(O14:O18)","v":0},{"$f":"SUM(P14:P16)","v":0},null,{"$f":"SUM(R14:R18)","v":0},{"$f":"SUM(S14:S16)","v":0},{"$f":"SUBTOTAL(9,G19:S19)","v":0}]
["1.1","Office accommodation","m²",101,null,{"$f":"SUM(D14*E14)","v":0},{"$f":"12*F14","v":0},{"v":0.06,"d":"6%"},{"$f":"SUM(F14*H14)+F14","v":0},{"$f":"(1+H14)*G14","v":0},{"v":0.06,"d":"6%"},{"$f":"SUM(I14*K14)+I14","v":0},{"$f":"SUM(1+K14)*J14","v":0},{"v":0.06,"d":"6%"},{"$f":"SUM(L14*N14)+L14","v":0},{"$f":"SUM(1+N14)*M14","v":0},{"v":0.06,"d":"6%"},{"$f":"SUM(O14*Q14)+O14","v":0},{"$f":"SUM(1+Q14)*P14","v":0},{"$f":"SUM(G14,J14,M14,P14,S14)","v":0}]
["1.2","Covered Parking Rental ","Bay",6,null,{"$f":"SUM(D15*E15)","v":0},{"$f":"12*F15","v":0},{"v":0.06,"d":"6%"},{"$f":"SUM(F15*H15)+F15","v":0},{"$f":"(1+H15)*G15","v":0},{"v":0.06,"d":"6%"},{"$f":"SUM(I15*K15)+I15","v":0},0,{"v":0.06,"d":"6%"},{"$f":"SUM(L15*N15)+L15","v":0},0,{"v":0.06,"d":"6%"},{"$f":"SUM(O15*Q15)+O15","v":0},{"$f":"SUM(1+Q15)*P15","v":0},{"$f":"SUM(G15,J15,M15,P15,S15)","v":0}]
["1.3","Other Operational Costs (including 4.3.1.12 of the bid specification)","Item",1,null,{"$f":"SUM(D16*E16)","v":0},0,{"v":0.06,"d":"6%"},{"$f":"SUM(G16*H16)","v":0},{"$f":"12*I16","v":0},{"v":0.06,"d":"6%"},{"$f":"SUM(J16*K16)","v":0},{"$f":"12*L16","v":0},{"v":0.06,"d":"6%"},{"$f":"SUM(M16*N16)","v":0},{"$f":"12*O16","v":0},{"v":0.06,"d":"6%"},{"$f":"SUM(P16*Q16)","v":0},{"$f":"12*R16","v":0},0]
[]
[]
[null,"SUBTOTAL ( EXCL VAT)",{"$nulls":4},{"$f":"SUM(G14:G18)","v":0},null,null,{"$f":"SUM(J14:J18)","v":0},null,null,{"$f":"SUM(M14:M18)","v":0},null,null,{"$f":"SUM(P14:P18)","v":0},null,null,{"$f":"SUM(S14:S18)","v":0},{"$f":"SUBTOTAL(9,G19:S19)","v":0}]
[null,"TOTAL BID PRICE  (EXCL VAT)",{"$nulls":17},{"$f":"SUBTOTAL(9,G19:S19)","v":0}]
[null,"VAT (@15%)",{"$nulls":17},{"$f":"T20*0.15","v":0}]
[null,"TOTAL  BID PRICE (INCL VAT)",{"$nulls":17},{"$f":"T20+T21","v":0}]
[]
[2,"Tenant Installation (Specify)"]
["2.1"]
["2.2"]
["2.3"]
["2.4"]
["2.5"]
[]
[3,"Beneficial Occupation  (in months)"]
[]
[]
[]
[null,"I, the bidder, confirm that the price(s) and rate(s) quoted cover all the goods and/or works specified in the bidding documents; that the price(s) or rate(s) cover all my obligations and I accept that any mistakes regarding price(s), rate(s) or calculations will be at my own risk.\n[Note: First convert to PDF, then add signature]"]
[null,null,"Name",null,null,"Capacity"]
[]
[null,null,"Signature (above)",{"$nulls":3},"Date"]

{"sheet":"Sheet1","index":1,"n_rows":11,"n_cols":4,"rows_kept":11,"merged":[[0,0,0,3]]}
["Project Time-Lines for SITA Middelburg Satellite Office "]
["Item","Activity","Date ","Period required "]
[1,"Lease Expiry Date of current lease agreement","2025-02-28"," "]
[2,"Beneficial Occupation Date for new lease premises (no rental payments) ","2025-03-01","1 Day"]
[3,"Fit out period for new premises "," 10 - 14 February 2025","1  week"]
[4,"Removal of furniture and equipment from old, leased premises","14-16 February 2025","3  Days"]
[5,"Final Inspection of the old premises with landlord","2025-02-17","1 day"]
[6,"Reinstatement Date of old Premises ","18-27 February 2025","10 Days"]
[7,"Old premises handed back to Landlord ","2025-02-28","1 Day"]
[5,"Occupation of new premises","2025-04-01","1 Day"]
[6,"Commencement Date of new lease agreement  ","2025-04-01"]